bitfinex/quotes_ETHUSD_20220103
["timestamp","ask_amount","ask_price","bid_price","bid_amount"]
[1641176660652,2.95939,3790.7,3790.5,0.00341054]
[1641176662203,2.95939,3790.7,3790.5,0.00699917]
[1641176662604,2.95939,3790.7,3790.6,0.00284211]
[1641176670104,2.3,3790.7,3790.6,0.00284211]
[1641176680319,2.3,3790.7,3790.6,1.79311036]
[1641176682658,2.3,3790.7,3790.6,0.00284211]
[1641176691813,2.3,3790.7,3790.6,1.79311036]
[1641176692609,2.3,3790.7,3790.6,1.79026825]
[1641176693411,2.3,3790.7,3790.5,0.66298863]
[1641176693613,2.3,3790.7,3790.6,1.31865]
[1641176694412,0.05425598,3791.1,3790.8,2.95370413]
[1641176694611,0.05425598,3791.1,3790.9,1.04023]
[1641176694810,0.05425598,3791.1,3790.9,1.04136684]
[1641176695011,0.05425598,3791.1,3791.0,29.35971599]
[1641176695310,0.0562,3792.1,3791.0,29.74071599]
[1641176695752,0.0022737,3791.5,3791.0,29.74071599]
[1641176695953,0.0022737,3791.5,3791.3,1.31842]
[1641176696154,0.05425528,3791.6,3791.4,0.381]
[1641176696354,0.05425528,3791.6,3791.5,0.65923]
[1641176696558,0.05425528,3791.6,3791.5,1.04023]
[1641176697255,0.65923,3791.7,3791.5,1.04023]
[1641176698257,0.60923,3791.7,3791.6,1.34653647]
[1641176698457,0.65922,3791.8,3791.6,1.34653647]
[1641176698660,0.00341054,3791.7,3791.6,1.34653647]
[1641176699315,2.20333862,3791.7,3791.5,1.04023]
[1641176699818,0.00284212,3791.6,3791.5,1.04023]
[1641176700615,0.00284212,3791.6,3791.5,2.83559688]
[1641176702618,0.00284212,3791.6,3791.5,1.04023]
[1641176709113,2.16989816,3792.2,3791.5,1.04023]
[1641176709417,0.65918,3792.3,3791.5,1.04023]
[1641176709418,0.00284212,3792.1,3791.5,1.04023]
[1641176709813,0.00227369,3792.0,3791.5,1.04023]
[1641176710214,0.00170527,3791.9,3791.5,1.04023]
[1641176710657,0.00113685,3791.8,3791.5,1.04023]
[1641176711060,0.00341054,3792.2,3791.5,1.04023]
[1641176715511,0.66262054,3792.2,3791.5,1.04023]
[1641176717960,0.66262054,3792.2,3791.5,0.65923]
[1641176717961,2.96761075,3792.1,3791.5,0.65923]
[1641176718163,0.00341054,3792.2,3791.4,0.00460769]
[1641176718363,0.65931,3791.9,3791.4,0.00460769]
[1641176718762,0.00113685,3791.8,3791.4,0.00460769]
[1641176719365,1.97932685,3791.8,3791.4,0.00460769]
[1641176719564,0.659363,3791.7,3791.4,0.00460769]
[1641176720168,2.93218812,3791.6,3791.4,0.00460769]
[1641176722713,2.0045963,3791.7,3791.4,0.00460769]
[1641176723915,0.659363,3791.7,3791.4,0.00460769]
[1641176726361,2.87735553,3791.6,3791.4,0.00460769]
[1641176726962,0.659363,3791.7,3791.4,0.00460769]
[1641176729815,2.07804158,3791.6,3791.4,0.00460769]
[1641176730814,0.659363,3791.7,3791.4,0.00460769]
[1641176732113,3.58536618,3791.7,3791.4,0.00460769]
[1641176735570,0.659363,3791.7,3791.4,0.00460769]
[1641176737824,3.54988278,3791.7,3791.4,0.00460769]
[1641176738025,0.659363,3791.7,3791.4,0.00460769]
[1641176739424,3.61234206,3791.7,3791.4,0.00460769]
[1641176740459,0.65945,3791.6,3791.4,0.00460769]
[1641176740666,2.99198504,3791.5,3791.4,0.00460769]
[1641176741060,2.99198504,3791.5,3791.4,0.00574454]
[1641176742563,2.99198504,3791.5,3790.8,2.95370413]
[1641176742764,0.65953,3791.2,3790.8,2.95370413]
[1641176743063,0.65953,3791.2,3790.9,0.00284211]
[1641176743064,0.65956,3791.0,3790.9,0.00284211]
[1641176743466,1.19748634,3790.7,3790.1,2.99859335]
[1641176743666,0.65964,3790.5,3790.1,2.99859335]
[1641176743864,1.3193278,3790.5,3790.2,0.00397897]
[1641176745022,4.3021685,3790.5,3790.2,0.00397897]
[1641176745825,4.3021685,3790.5,3789.6,0.00738951]
[1641176746022,1.3193504,3790.2,3789.6,0.00738951]
[1641176746223,0.65968,3790.0,3789.6,0.00738951]
[1641176746423,0.89708,3790.0,3789.6,0.00738951]
[1641176746624,1.31936,3790.3,3789.6,0.00738951]
[1641176746822,3.12958914,3790.5,3789.6,0.00738951]
[1641176747025,1.9790255,3790.6,3789.6,0.00738951]
[1641176747026,0.65963,3790.2,3789.6,0.00738951]
[1641176748271,1.3192747,3790.2,3789.6,0.00738951]
[1641176748471,1.9789247,3790.2,3789.6,0.00738951]
[1641176749071,1.9789247,3790.2,3789.4,0.00852636]
[1641176749472,0.65963,3790.2,3789.7,0.00358926]
[1641176749672,0.63980088,3790.2,3789.7,0.00358926]
[1641176749872,0.63980088,3790.2,3789.8,0.00625266]
[1641176750273,0.63980088,3790.2,3789.9,0.00700951]
[1641176750473,1.31923,3790.4,3790.1,0.00358926]
[1641176750474,0.65957,3790.4,3790.1,0.00358926]
[1641176750873,1.31918,3790.4,3790.1,0.00358926]
[1641176751923,0.65957,3790.4,3790.1,0.00358926]
[1641176752325,4.93237393,3790.8,3790.1,0.00358926]
[1641176752525,0.65952,3790.6,3790.1,0.00358926]
[1641176753324,0.6595464,3790.7,3790.1,0.00358926]
[1641176753525,3.61324413,3790.8,3790.1,0.00358926]
[1641176754628,0.65955,3790.5,3790.1,0.00358926]
[1641176754829,0.65955,3790.5,3790.1,1.33903447]
[1641176755687,2.13207557,3790.4,3790.1,1.33903447]
[1641176756488,2.13207557,3790.4,3790.2,1.33544521]
[1641176756889,2.13207557,3790.4,3790.3,0.00341054]
[1641176759836,0.65955,3790.5,3790.3,0.00341054]
[1641176760334,0.65955,3790.5,3790.3,0.01042005]
[1641176760834,0.65955,3790.5,3790.4,0.00284212]
[1641176770222,0.65955,3790.5,3790.4,0.00985163]
[1641176775621,2.78091421,3790.5,3790.4,0.00985163]
[1641176787173,2.78091421,3790.5,3790.4,1.34529684]
[1641176787773,2.78091421,3790.5,3790.4,0.00985163]
[1641176790723,2.78091421,3790.5,3790.4,0.00700951]
[1641176799929,0.65955,3790.5,3790.4,0.00700951]
[1641176804421,2.78142029,3790.5,3790.4,1.34245472]
[1641176805527,2.78142029,3790.5,3790.4,0.00700951]
[1641176805528,0.65955,3790.5,3790.4,0.00700951]
[1641176806824,2.78076699,3790.5,3790.4,1.35386977]
[1641176807425,2.63076699,3790.5,3790.4,1.35386977]
[1641176812821,0.50955,3790.5,3790.4,0.00700951]
[1641176815321,0.50955,3790.5,3790.4,1.35129161]
[1641176816576,0.50955,3790.5,3790.4,0.00700951]
[1641176817780,0.50955,3790.5,3790.4,1.35129161]
[1641176819630,1.79242513,3791.9,3790.4,5.01849716]
[1641176819828,2.45172103,3791.9,3790.5,0.03148414]
[1641176820029,0.00170527,3791.2,3790.9,0.65923]
[1641176820327,0.00113684,3791.1,3791.0,0.381]
[1641176820527,0.00113684,3791.1,3791.0,6.55018079]
[1641176821131,0.00113684,3791.1,3791.0,1.63839237]
[1641176821526,0.00113684,3791.1,3791.0,3.43034942]
[1641176821727,0.00113684,3791.1,3791.0,5.21024102]
[1641176821928,0.00113684,3791.1,3791.0,8.09454818]
[1641176822527,0.00113684,3791.1,3791.0,6.30259113]
[1641176823875,0.00113684,3791.1,3791.0,7.63303799]
[1641176826575,0.00113684,3791.1,3791.0,7.63482971]
[1641176827023,0.00113684,3791.1,3791.0,5.84293125]
[1641176830328,0.00113684,3791.1,3791.0,5.84994076]
[1641176830571,0.00113684,3791.1,3791.0,2.9656336]
[1641176830972,0.00113684,3791.1,3791.0,1.71237024]
[1641176831271,0.00113684,3791.1,3791.0,0.39393024]
[1641176831573,0.00113684,3791.1,3791.0,0.01293024]
[1641176831969,0.00113684,3791.1,3791.0,1.35695899]
[1641176834074,0.00113684,3791.1,3791.0,0.01293024]
[1641176850731,1.85971256,3791.2,3791.0,0.01293024]
[1641176855083,2.51913406,3791.2,3791.0,0.01293024]
[1641176856077,1.85971256,3791.2,3791.0,0.01293024]
[1641176856277,0.65931,3791.3,3791.0,0.01293024]
[1641176856722,0.00170527,3791.2,3791.0,0.01293024]
[1641176857124,0.00113684,3791.1,3791.0,0.01293024]
[1641176864323,0.00113684,3791.1,3791.0,1.35527272]
[1641176873937,0.00113684,3791.1,3791.0,4.3548744]
[1641176874136,0.00113684,3791.1,3791.0,5.10179183]
[1641176874337,0.00113684,3791.1,3791.0,6.10179183]
[1641176875337,0.00113684,3791.1,3791.0,4.75944935]
[1641176876787,0.00113684,3791.1,3791.0,7.70944935]
[1641176877188,0.00113684,3791.1,3791.0,8.35051785]
[1641176878192,0.00016695,3791.1,3791.0,8.35051785]
[1641176880539,0.00016695,3791.1,3791.0,4.75944935]
[1641176881640,0.00016695,3791.1,3791.0,4.79553549]
[1641176881839,0.00016695,3791.1,3791.0,9.84553549]
[1641176882039,0.05425523,3791.4,3791.1,8.8]
[1641176882240,0.05425523,3791.4,3791.2,4.86337394]
[1641176882445,0.05425523,3791.4,3791.3,8.84991195]
[1641176882638,0.05425523,3791.4,3791.3,3.49682938]
[1641176882839,0.0559605,3791.4,3791.3,3.49682938]
[1641176883086,0.0559605,3791.4,3791.3,7.0834798]
[1641176883288,0.00170527,3791.4,3791.3,7.0834798]
[1641176885888,0.00170527,3791.4,3791.3,3.49682938]
[1641176887728,0.00170527,3791.4,3791.3,0.381]
[1641176889341,0.00170527,3791.4,3791.3,3.07120413]
[1641176890134,0.00170527,3791.4,3791.3,5.75906559]
[1641176890333,0.00170527,3791.4,3791.3,5.7660751]
[1641176890586,0.00170527,3791.4,3791.3,3.07587097]
[1641176890986,0.00170527,3791.4,3791.3,0.38800951]
[1641176891189,0.00170527,3791.4,3791.3,0.00700951]
[1641176892790,0.00170527,3791.4,3791.3,0.01471647]
[1641176893897,0.00170527,3791.4,3791.3,2.70783233]
[1641176895126,0.00170527,3791.4,3791.3,0.01471647]
[1641176912852,1.67412923,3791.5,3791.3,0.01471647]
[1641176913992,1.67412923,3791.5,3791.4,1.34670305]
[1641176914394,1.67640293,3791.5,3791.4,1.34670305]
[1641176919934,1.67640293,3791.5,3791.3,1.05498647]
[1641176919935,0.0022737,3791.5,3791.3,1.05498647]
[1641176920140,0.0022737,3791.5,3791.4,1.79561207]
[1641176920340,0.0542548,3791.7,3791.4,1.80262158]
[1641176920602,0.0542548,3791.7,3791.6,1.02988042]
[1641176921208,0.65917,3792.0,3791.6,1.02988042]
[1641176921603,0.00454739,3791.9,3791.7,0.65916]
[1641176922004,0.00397897,3791.8,3791.7,0.65916]
[1641176930298,0.00397897,3791.8,3791.7,0.66616951]
[1641176934737,0.00397897,3791.8,3791.7,2.46146102]
[1641176938690,0.00397897,3791.8,3791.7,2.46915255]
[1641176940134,0.00397897,3791.8,3791.7,0.67386104]
[1641176940938,0.00397897,3791.8,3791.7,0.73977847]
[1641176942435,0.00397897,3791.8,3791.7,1.12077847]
[1641176945387,0.00397897,3791.8,3791.7,2.46100134]
[1641176946387,0.00397897,3791.8,3791.7,1.12077847]
[1641176947536,0.00397897,3791.8,3791.7,1.42077847]
[1641176947737,0.00397897,3791.8,3791.7,5.10893782]
[1641176947937,0.00397897,3791.8,3791.7,9.86693782]
[1641176948737,0.00397897,3791.8,3791.7,11.66222933]
[1641176949836,0.00397897,3791.8,3791.7,9.86693782]
[1641176950038,0.0001962,3791.8,3791.7,9.86693782]
[1641176950701,0.0001962,3791.8,3791.7,9.89750362]
[1641176952301,0.05425438,3792.0,3791.7,9.89750362]
[1641176952705,0.05425438,3792.0,3791.8,1.1559682]
[1641176952901,0.05425438,3792.0,3791.9,8.85840933]
[1641176953103,0.05425438,3792.0,3791.9,4.30840933]
[1641176953302,0.00133304,3792.0,3791.9,4.60840933]
[1641176954743,0.00133304,3792.0,3791.9,6.39504888]
[1641176956350,0.00133304,3792.0,3791.9,4.60840933]
[1641176960195,0.00133304,3792.0,3791.9,4.61541884]
[1641176961499,0.00133304,3792.0,3791.9,4.68133627]
[1641176962647,0.00133304,3792.0,3791.9,3.68133627]
[1641176963250,0.00133304,3792.0,3791.9,5.46536252]
[1641176964449,0.00133304,3792.0,3791.9,3.68133627]
[1641176965050,0.00133304,3792.0,3791.9,4.68133627]
[1641176965690,6.828e-05,3792.0,3791.9,7.83133627]
[1641176965887,6.828e-05,3792.0,3791.9,4.68133627]
[1641176970940,6.828e-05,3792.0,3791.9,1.45392694]
[1641176971942,6.828e-05,3792.0,3791.9,0.45392694]
[1641176972145,6.828e-05,3792.0,3791.9,0.75392694]
[1641176972742,6.828e-05,3792.0,3791.9,3.85392694]
[1641176972990,6.828e-05,3792.0,3791.9,4.85392694]
[1641176974590,6.828e-05,3792.0,3791.9,7.53010747]
[1641176974990,6.828e-05,3792.0,3791.9,7.56579919]
[1641176975192,6.828e-05,3792.0,3791.9,4.88961866]
[1641176977337,6.828e-05,3792.0,3791.9,1.78961866]
[1641176977741,6.828e-05,3792.0,3791.9,4.53961866]
[1641176980790,0.05425403,3792.5,3791.9,7.21579919]
[1641176980990,0.05425403,3792.5,3792.1,0.4613157]
[1641176981192,0.0022737,3792.4,3792.3,0.65902]
[1641176981392,0.0022737,3792.4,3792.3,1.34002]
[1641176981594,0.00397897,3792.7,3792.3,1.34002]
[1641176981791,0.00397897,3792.7,3792.3,0.681]
[1641176982098,0.00341054,3792.6,3792.3,0.681]
[1641176982494,0.00284212,3792.5,3792.3,0.681]
[1641176982693,0.00284212,3792.5,3792.4,1.31802]
[1641176982894,0.00397897,3792.7,3792.4,1.69902]
[1641176983093,0.00284212,3792.5,3792.4,1.69902]
[1641176983292,0.00341054,3792.6,3792.4,1.69902]
[1641176983492,0.65903,3792.8,3792.4,1.69902]
[1641176983493,0.00284212,3792.5,3792.4,1.69902]
[1641176984534,0.00284212,3792.5,3792.4,2.1603124]
[1641176984739,0.00284212,3792.5,3792.4,1.69902]
[1641176985935,0.00284212,3792.5,3792.4,4.37520053]
[1641176988199,0.00284212,3792.5,3792.4,1.69902]
[1641176990103,0.00284212,3792.5,3792.4,1.70847957]
[1641176990300,0.00284212,3792.5,3792.4,1.71548908]
[1641176990702,0.00284212,3792.5,3792.4,4.33273189]
[1641176991002,0.00284212,3792.5,3792.4,4.39166961]
[1641176991856,0.00284212,3792.5,3792.4,6.99060512]
[1641176992054,0.00284212,3792.5,3792.4,4.39166961]
[1641176992656,0.00284212,3792.5,3792.4,4.32203578]
[1641176992861,0.00284212,3792.5,3792.4,4.32047778]
[1641176994458,0.00284212,3792.5,3792.4,4.40492839]
[1641176994657,0.00284212,3792.5,3792.4,7.03122099]
[1641176995061,0.00284212,3792.5,3792.4,7.05515636]
[1641176995262,0.00284212,3792.5,3792.4,31.58866482]
[1641176995490,0.00284212,3792.5,3792.4,31.99256999]
[1641176995690,0.00284212,3792.5,3792.4,31.61765109]
[1641176995996,0.00284212,3792.5,3792.4,35.34935992]
[1641176996190,0.00014884,3792.5,3792.4,35.34935992]
[1641176997090,0.00014884,3792.5,3792.4,35.04935992]
[1641176997491,0.00014884,3792.5,3792.4,35.34935992]
[1641176997695,6.21,3793.0,3792.6,0.65883]
[1641176997890,6.21,3793.0,3792.8,1.1200232]
[1641176998091,6.21,3793.0,3792.9,12.13404948]
[1641176998291,6.21,3793.0,3792.9,12.46544971]
[1641176998489,6.21,3793.0,3792.9,12.53136714]
[1641176998490,6.21284212,3793.0,3792.9,12.53136714]
[1641176998689,6.21284212,3793.0,3792.9,13.53136714]
[1641176998890,6.21284212,3793.0,3792.9,14.61349948]
[1641176999090,0.94273212,3793.0,3792.9,14.61349948]
[1641176999547,0.05425255,3793.3,3793.0,8.8]
[1641176999747,0.05425255,3793.3,3793.1,5.31201207]
[1641176999942,0.05425255,3793.3,3793.2,8.32799733]
[1641177000145,0.05425255,3793.3,3793.2,4.15899733]
[1641177000347,0.05595782,3793.3,3793.2,4.15899733]
[1641177000543,0.05595782,3793.3,3793.2,7.74419794]
[1641177001147,0.05595782,3793.3,3793.2,6.6088286]
[1641177001344,0.00170527,3793.3,3793.2,6.6088286]
[1641177001844,0.00170527,3793.3,3793.2,3.02362799]
[1641177002242,0.00170527,3793.3,3793.2,3.32362799]
[1641177002846,0.00170527,3793.3,3793.2,3.35826244]
[1641177006194,0.65879,3794.2,3793.2,3.35826244]
[1641177006393,0.65879,3794.2,3793.6,1.1199569]
[1641177006594,0.00625266,3794.1,3793.7,0.381]
[1641177007040,0.00568423,3794.0,3793.7,0.381]
[1641177007441,0.00511581,3793.9,3793.7,0.381]
[1641177007942,0.00454739,3793.8,3793.7,1.69858]
[1641177008146,0.00454739,3793.8,3793.7,2.1597216]
[1641177009343,0.00454739,3793.8,3793.7,2.2131851]
[1641177011191,0.00454739,3793.8,3793.7,4.86035417]
[1641177011392,0.00454739,3793.8,3793.7,4.86870865]
[1641177011591,0.00454739,3793.8,3793.7,2.2131851]
[1641177011792,0.00454739,3793.8,3793.7,1.3710435]
[1641177011993,0.00454739,3793.8,3793.7,0.0534635]
[1641177012393,2.95008543,3793.8,3793.7,0.0534635]
[1641177013192,3.60909523,3793.8,3793.7,0.0534635]
[1641177013397,1.03181,3793.9,3793.7,0.0534635]
[1641177013593,0.82191,3793.9,3793.7,0.0534635]
[1641177013795,3.64688631,3793.9,3793.7,0.0534635]
[1641177013992,0.82191,3793.9,3793.7,0.0534635]
[1641177014241,2.81711996,3793.8,3793.7,0.02673175]
[1641177014450,3.47610996,3793.8,3792.9,1.33445663]
[1641177014643,0.6591,3793.5,3793.4,0.02673175]
[1641177014843,6.25806146,3793.5,3793.4,0.02673175]
[1641177015645,1.14634944,3793.5,3793.4,0.02673175]
[1641177016447,1.31819,3793.6,3793.4,0.02673175]
[1641177016847,1.31819,3793.6,3793.5,0.00170527]
[1641177019603,1.31819,3793.6,3793.5,0.02843702]
[1641177020003,1.31819,3793.6,3793.5,0.05516877]
[1641177020203,1.31819,3793.6,3793.5,0.06294966]
[1641177026298,2.93897254,3793.6,3793.5,0.06294966]
[1641177026895,2.93897254,3793.6,3793.5,0.07416119]
[1641177027095,1.31819,3793.6,3793.5,0.07416119]
[1641177030562,1.31819,3793.6,3793.5,0.06294966]
[1641177032065,1.31819,3793.6,3793.5,0.07416116]
[1641177036493,1.61819,3793.6,3793.5,0.07416116]
[1641177037643,1.61819,3793.6,3793.4,0.03231804]
[1641177037846,3.5186217,3793.6,3793.4,0.03231804]
[1641177038448,3.5186217,3793.6,3793.1,0.05457302]
[1641177038648,2.9275354,3793.5,3793.1,0.05457302]
[1641177038847,0.65916,3793.4,3793.2,0.00170527]
[1641177039047,1.31832,3793.4,3793.2,0.00170527]
[1641177039447,1.6092317,3793.3,3793.2,0.00170527]
[1641177042904,2.6366319,3793.4,3793.2,0.00170527]
[1641177044643,1.68635305,3793.3,3793.2,0.03256844]
[1641177045245,0.65916,3793.4,3793.2,0.03256844]
[1641177045643,0.65916,3793.4,3793.3,0.00113685]
[1641177048993,2.34627563,3793.4,3793.3,0.00113685]
[1641177050995,3.00541563,3793.4,3793.3,0.00113685]
[1641177051397,3.00541563,3793.4,3793.1,0.03657304]
[1641177051596,3.00543563,3793.4,3793.1,0.03657304]
[1641177051852,0.6591652,3793.3,3793.1,0.03657304]
[1641177052043,0.9591652,3793.3,3793.1,0.03657304]
[1641177052843,1.68711563,3793.2,3793.1,0.03657304]
[1641177053241,1.68711563,3793.2,3793.1,0.00113685]
[1641177053641,0.6591655,3793.1,3792.6,0.00397897]
[1641177053842,1.31834,3793.0,3792.7,0.05439362]
[1641177054244,1.31834,3793.0,3792.8,0.00284212]
[1641177054545,1.68711563,3792.9,3792.8,0.00284212]
[1641177055795,1.68711563,3792.9,3792.5,0.00454739]
[1641177055796,0.65924,3792.8,3792.5,0.00454739]
[1641177056397,0.65924,3792.8,3792.4,0.00511581]
[1641177056796,1.3184721,3792.8,3792.4,0.00511581]
[1641177056998,1.68711563,3792.7,3792.4,0.00511581]
[1641177057199,3.00558563,3792.7,3792.4,0.00511581]
[1641177057402,3.00558563,3792.7,3792.2,0.00625266]
[1641177057698,3.00558563,3792.7,3792.4,0.0056444]
[1641177057699,1.68711563,3792.6,3792.4,0.0056444]
[1641177058097,1.68711563,3792.6,3792.5,0.00454739]
[1641177061565,1.68711563,3792.6,3792.5,0.03541608]
[1641177065299,1.68711563,3792.6,3792.2,1.32551711]
[1641177065698,0.65911,3792.5,3792.3,0.00113685]
[1641177066845,0.65911,3792.5,3792.0,1.78419115]
[1641177067042,0.65911,3792.5,3792.1,0.00227369]
[1641177067647,0.65911,3792.5,3792.2,0.03087007]
[1641177068244,0.65911,3792.5,3792.2,1.8122191]
[1641177068645,0.65911,3792.5,3792.2,2.4713391]
[1641177070143,0.65911,3792.5,3792.2,1.8122191]
[1641177070603,1.68579729,3792.4,3792.2,0.03087007]
[1641177071203,0.65911,3792.5,3792.2,0.03087007]
[1641177073605,0.65911,3792.5,3792.2,0.69000007]
[1641177075041,0.65911,3792.5,3792.2,0.03087007]
[1641177078314,0.65911,3792.5,3792.2,0.69001007]
[1641177083054,0.65911,3792.5,3792.2,0.69463091]
[1641177087691,0.65911,3792.5,3792.2,0.03549091]
[1641177088091,0.84331,3792.5,3792.2,0.03549091]
[1641177088492,3.59331,3792.5,3792.2,0.03549091]
[1641177090759,0.65911,3792.5,3792.2,0.03549091]
[1641177091359,2.50911,3792.5,3792.2,0.03549091]
[1641177091859,0.65911,3792.5,3792.2,0.03549091]
[1641177092259,1.68291434,3792.4,3792.2,0.03549091]
[1641177108311,0.65911,3792.5,3792.2,0.03549091]
[1641177108810,1.67180551,3792.4,3792.2,0.03549091]
[1641177109213,1.67180551,3792.4,3792.2,0.69463091]
[1641177110212,0.65911,3792.5,3792.2,0.03549091]
[1641177111211,1.67208746,3792.4,3792.2,0.03549091]
[1641177111856,0.65911,3792.5,3792.2,0.03549091]
[1641177113560,1.67179773,3792.4,3792.2,0.03549091]
[1641177115897,1.67179773,3792.4,3792.3,30.76529073]
[1641177116098,0.05439467,3793.0,3792.3,30.76529073]
[1641177116300,0.65906,3792.7,3792.3,30.76529073]
[1641177117098,0.65906,3792.7,3792.4,2.03680696]
[1641177117898,0.65906,3792.7,3792.4,2.69586696]
[1641177118699,0.65906,3792.7,3792.5,0.381]
[1641177118902,0.65906,3792.7,3792.5,1.71909971]
[1641177119750,0.65906,3792.7,3792.5,0.381]
[1641177121550,1.31823,3792.7,3792.5,0.381]
[1641177124601,1.31823,3792.7,3792.2,2.03274062]
[1641177124802,0.65919,3792.6,3792.2,1.37359062]
[1641177125001,1.61838,3792.6,3792.2,1.37359062]
[1641177125702,1.61838,3792.6,3792.2,0.03549091]
[1641177128753,0.95919,3792.6,3792.2,0.03549091]
[1641177129654,0.65919,3792.6,3792.2,0.03549091]
[1641177130506,1.5958931,3792.5,3792.3,1.33809971]
[1641177132004,1.5958931,3792.5,3792.4,1.33809971]
[1641177133307,1.5958931,3792.5,3792.3,1.33809971]
[1641177136558,0.65919,3792.6,3792.2,0.03549091]
[1641177136958,0.65919,3792.6,3792.2,0.69464091]
[1641177137159,0.65919,3792.6,3792.2,0.03549091]
[1641177138803,1.5870903,3792.5,3792.2,0.69463091]
[1641177140913,1.5870903,3792.5,3792.2,0.03549091]
[1641177143762,1.5870903,3792.5,3792.3,0.65914]
[1641177143965,1.5870903,3792.5,3792.2,0.03549091]
[1641177150155,1.5870903,3792.5,3792.3,0.65912]
[1641177150359,1.5870903,3792.5,3792.4,2.61659917]
[1641177150554,0.65919,3792.6,3792.4,2.61659917]
[1641177150760,0.65919,3792.6,3792.3,1.99721971]
[1641177151154,0.65919,3792.6,3792.3,2.37821971]
[1641177152155,0.65919,3792.6,3792.3,1.04012]
[1641177153403,0.65919,3792.6,3792.5,1.33809971]
[1641177154605,0.65919,3792.6,3792.4,1.33809971]
[1641177156406,0.65919,3792.6,3792.5,1.33809971]
[1641177157889,0.65919,3792.6,3792.4,1.33809971]
[1641177165366,0.65919,3792.6,3792.3,0.381]
[1641177165966,0.95919,3792.6,3792.3,1.71909971]
[1641177167170,0.65919,3792.6,3792.3,1.71909971]
[1641177167367,0.95919,3792.6,3792.3,1.71909971]
[1641177167566,0.95919,3792.6,3792.3,0.381]
[1641177168007,0.95919,3792.6,3792.3,1.71909971]
[1641177168408,0.65919,3792.6,3792.3,1.71909971]
[1641177168909,0.95919,3792.6,3792.3,1.71909971]
[1641177170208,0.65919,3792.6,3792.3,1.71909971]
[1641177171893,0.65919,3792.6,3792.3,2.37822971]
[1641177173291,0.65919,3792.6,3792.4,1.33809971]
[1641177175617,0.95919,3792.6,3792.4,1.33809971]
[1641177175819,0.95919,3792.6,3792.3,1.99722971]
[1641177176620,1.5511144,3792.5,3792.3,1.99722971]
[1641177177018,0.65919,3792.6,3792.3,1.99722971]
[1641177177418,0.60919,3792.6,3792.3,1.99722971]
[1641177181275,1.55207308,3792.5,3792.4,1.33809971]
[1641177183120,0.60919,3792.6,3792.3,0.65913]
[1641177183618,0.90919,3792.6,3792.3,0.65913]
[1641177183816,0.90919,3792.6,3792.4,1.34601442]
[1641177183817,1.55233569,3792.5,3792.4,1.34601442]
[1641177186320,1.55233569,3792.5,3792.3,0.65913]
[1641177187168,1.55233569,3792.5,3792.4,1.34602588]
[1641177198314,1.55233569,3792.5,3792.3,1.34602588]
[1641177205905,1.55233569,3792.5,3792.3,1.80741448]
[1641177206205,1.55233569,3792.5,3792.3,1.34602588]
[1641177206907,1.55233569,3792.5,3792.3,2.00515588]
[1641177207807,1.55233569,3792.5,3792.2,2.04067679]
[1641177208405,0.60919,3792.6,3792.3,1.34602588]
[1641177209662,1.55087004,3792.5,3792.3,1.34602588]
[1641177209864,1.50087004,3792.5,3792.3,1.34602588]
[1641177210061,0.60919,3792.6,3792.2,2.04067679]
[1641177210262,0.60919,3792.6,3792.2,1.38151679]
[1641177210564,3.39493392,3792.6,3792.2,1.38151679]
[1641177211267,4.05415392,3792.6,3792.2,0.03549091]
[1641177213612,4.06877547,3792.6,3792.2,0.03549091]
[1641177213814,4.07386071,3792.6,3792.2,0.03549091]
[1641177214317,1.26841,3792.6,3792.2,0.03549091]
[1641177214516,2.80175057,3792.5,3792.2,0.03549091]
[1641177214713,1.26841,3792.6,3792.2,0.03549091]
[1641177216116,0.60919,3792.6,3792.2,0.03549091]
[1641177218474,3.47958632,3792.6,3792.2,0.03549091]
[1641177218672,1.31739179,3792.5,3792.2,0.03549091]
[1641177218873,2.97443472,3792.4,3792.2,0.03549091]
[1641177220915,4.13075572,3792.6,3792.2,0.03549091]
[1641177221518,0.60919,3792.6,3792.2,0.03549091]
[1641177221918,0.90919,3792.6,3792.2,0.03549091]
[1641177224130,1.56843,3792.6,3792.2,0.03549091]
[1641177224768,1.26843,3792.6,3792.2,0.03549091]
[1641177224963,1.26843,3792.6,3792.3,0.65915]
[1641177224964,0.60919,3792.6,3792.3,0.65915]
[1641177226364,0.90919,3792.6,3792.2,1.38151679]
[1641177227369,0.90919,3792.6,3792.2,0.03549091]
[1641177227765,0.60919,3792.6,3792.2,0.03549091]
[1641177228020,3.44425061,3792.6,3792.2,0.03549091]
[1641177228219,0.60919,3792.6,3792.2,0.03549091]
[1641177229019,3.40946602,3792.6,3792.2,0.03549091]
[1641177229221,0.60919,3792.6,3792.2,0.03549091]
[1641177229419,3.43899552,3792.6,3792.2,0.03549091]
[1641177229624,3.42275217,3792.6,3792.2,0.03549091]
[1641177229821,0.60919,3792.6,3792.2,0.03549091]
[1641177230220,3.41371582,3792.6,3792.2,0.03549091]
[1641177230420,1.49948508,3792.5,3792.2,0.03549091]
[1641177235362,1.49948508,3792.5,3792.2,0.69466091]
[1641177235615,1.49948508,3792.5,3792.2,0.03549091]
[1641177236415,1.49948508,3792.5,3792.2,0.69467091]
[1641177238518,1.49948508,3792.5,3792.3,0.65916]
[1641177239119,1.49948508,3792.5,3792.3,1.1205352]
[1641177239361,0.60919,3792.6,3792.3,1.1205352]
[1641177239971,0.05439467,3793.0,3792.9,24.67830973]
[1641177240163,0.05439467,3793.0,3792.9,25.82590973]
[1641177240467,0.05723679,3793.0,3792.9,25.82590973]
[1641177240865,0.05723679,3793.0,3792.9,26.95517881]
[1641177241261,0.00284212,3793.0,3792.9,26.95517881]
[1641177241663,0.00284212,3793.0,3792.9,4.31367604]
[1641177241864,0.00284212,3793.0,3792.9,4.20601604]
[1641177242062,0.00284212,3793.0,3792.9,6.90957597]
[1641177242664,0.00284212,3793.0,3792.9,4.87276901]
[1641177243820,0.00284212,3793.0,3792.9,6.66468852]
[1641177246321,0.00284212,3793.0,3792.9,6.69555323]
[1641177246524,0.0543939,3793.3,3792.9,6.69555323]
[1641177246525,1.73816892,3794.6,3794.4,4.57326452]
[1641177246779,2.73852538,3794.9,3794.8,0.97304951]
[1641177246977,2.73852538,3794.9,3794.8,1.63175951]
[1641177247277,2.74932542,3794.9,3794.8,27.17606709]
[1641177247472,2.74932542,3794.9,3794.8,28.80481465]
[1641177247673,2.74932542,3794.9,3794.8,28.83911926]
[1641177248576,0.11080004,3794.9,3794.8,28.83911926]
[1641177249175,0.11080004,3794.9,3794.8,3.29481168]
[1641177249377,0.11080004,3794.9,3794.8,6.01194378]
[1641177249776,0.11080004,3794.9,3794.8,8.04875074]
[1641177250177,0.11080004,3794.9,3794.8,8.34875074]
[1641177250378,0.11080004,3794.9,3794.8,6.31194378]
[1641177250830,0.11080004,3794.9,3794.8,6.3182591]